fUST/lending_fUST_20240119
["ID","MTS","AMOUNT","RATE_DAILY","PERIOD"]
[312087792,1705608645189,-500.55936757,0.00041095,30]
[312087793,1705608645200,-463.0857251,0.00041095,30]
[312087794,1705608645277,-500.0,0.00041095,30]
[312087795,1705608645287,-500.0,0.00041095,30]
[312087796,1705608645297,-689.99,0.00041095,30]
[312087797,1705608645306,-500.0,0.00041095,30]
[312087798,1705608645314,-517.81268259,0.00041095,30]
[312087799,1705608645323,-500.0,0.00041095,30]
[312087800,1705608645332,-500.0,0.00041095,30]
[312087801,1705608645341,-500.0,0.00041095,30]
[312087803,1705608645350,-500.0,0.00041095,30]
[312087805,1705608645358,-213.50392628,0.00041095,30]
[312087806,1705608645367,-226.24686039,0.00041095,30]
[312087808,1705608645376,-950.0,0.00041095,2]
[312087810,1705608645390,-500.0,0.00041095,30]
[312087812,1705608645398,-500.0,0.00041095,30]
[312087814,1705608645407,-500.0,0.00041095,30]
[312087815,1705608645415,-1724.64,0.00041095,30]
[312087817,1705608645424,-500.98960001,0.00041095,30]
[312087819,1705608645433,-500.0,0.00041095,30]
[312087821,1705608645442,-526.09517294,0.00041095,30]
[312087823,1705608645450,-500.0,0.00041095,30]
[312087824,1705608645459,-500.0,0.00041095,30]
[312087825,1705608645468,-500.0,0.00041095,30]
[312087826,1705608645477,-503.74146574,0.00041095,30]
[312087827,1705608645487,-500.0,0.00041095,30]
[312087828,1705608645496,-500.0,0.00041095,7]
[312087829,1705608645505,-500.0,0.00041095,30]
[312087830,1705608645514,-500.0,0.00041095,30]
[312087831,1705608645523,-500.0,0.00041095,30]
[312087832,1705608645532,-500.0,0.00041095,30]
[312087833,1705608645541,-526.45,0.00041095,30]
[312087834,1705608645551,-500.0,0.00041095,30]
[312087835,1705608645560,-500.0,0.00041095,30]
[312087836,1705608645569,-500.0,0.00041095,30]
[312087837,1705608645578,-500.0,0.00041095,30]
[312087839,1705608645587,-500.0,0.00041095,30]
[312087840,1705608645597,-514.16711295,0.00041095,30]
[312087842,1705608645606,-500.0,0.00041095,30]
[312087844,1705608645615,-500.0,0.00041095,30]
[312087846,1705608645657,-500.0,0.00041095,30]
[312087848,1705608645666,-500.0,0.00041095,30]
[312087850,1705608645675,-500.0,0.00041095,30]
[312087851,1705608645684,-500.0,0.00041095,30]
[312087852,1705608645694,-531.75097436,0.00041095,30]
[312087853,1705608645703,-500.0,0.00041095,30]
[312087854,1705608645713,-500.0,0.00041095,30]
[312087855,1705608645722,-501.81380151,0.00041095,30]
[312087856,1705608645731,-500.0,0.00041095,30]
[312087857,1705608645740,-500.0,0.00041095,30]
[312087858,1705608645749,-954.28,0.00041095,30]
[312087859,1705608645758,-502.02270578,0.00041095,30]
[312087860,1705608645768,-500.0,0.00041095,30]
[312087861,1705608645777,-500.0,0.00041095,30]
[312087862,1705608645786,-500.0,0.00041095,30]
[312087863,1705608645795,-500.0,0.00041095,30]
[312087864,1705608645804,-500.0,0.00041095,30]
[312087865,1705608645813,-575.60610299,0.00041095,30]
[312087866,1705608645822,-500.0,0.00041095,30]
[312087867,1705608645831,-500.0,0.00041095,30]
[312087868,1705608645841,-500.0,0.00041095,30]
[312087869,1705608645850,-500.0,0.00041095,30]
[312087870,1705608645859,-500.0,0.00041095,30]
[312087871,1705608645868,-500.282082,0.00041095,14]
[312087872,1705608645878,-500.0,0.00041095,30]
[312087873,1705608645890,-500.0,0.00041095,30]
[312087874,1705608645900,-340.05528394,0.00041095,30]
[312087875,1705608645909,-500.0,0.00041095,30]
[312087876,1705608645918,-500.0,0.00041095,30]
[312087877,1705608645926,-500.0,0.00041095,30]
[312087878,1705608645935,-584.52617011,0.00041095,30]
[312087879,1705608645943,-500.0,0.00041095,30]
[312087880,1705608645952,-500.0,0.00041095,30]
[312087881,1705608645961,-202.96825534,0.00041095,30]
[312087882,1705608645969,-252.80915826,0.00041095,30]
[312087883,1705608645979,-626.48,0.00041095,30]
[312087884,1705608645988,-500.0,0.00041095,30]
[312087885,1705608645996,-500.0,0.00041095,30]
[312087886,1705608646006,-522.43826179,0.00041095,30]
[312087887,1705608646014,-500.0,0.00041095,30]
[312087888,1705608646024,-500.37519459,0.00041095,30]
[312087889,1705608646033,-500.0,0.00041095,30]
[312087890,1705608646042,-500.0,0.00041095,30]
[312087891,1705608646051,-531.57493587,0.00041095,30]
[312087892,1705608646060,-500.0,0.00041095,30]
[312087893,1705608646070,-500.0,0.00041095,30]
[312087894,1705608646080,-500.0,0.00041095,30]
[312087895,1705608646090,-500.0,0.00041095,30]
[312087896,1705608646100,-511.48491375,0.00041095,30]
[312087897,1705608646110,-500.0,0.00041095,30]
[312087898,1705608646120,-500.0,0.00041095,30]
[312087899,1705608646132,-265.68362847,0.00041095,30]
[312087900,1705608646141,-500.0,0.00041095,30]
[312087901,1705608646150,-500.0,0.00041095,30]
[312087902,1705608646160,-500.0,0.00041095,30]
[312087903,1705608646170,-1000.0,0.00041095,2]
[312087904,1705608646180,-500.0,0.00041095,30]
[312087905,1705608646189,-500.0,0.00041095,30]
[312087906,1705608646198,-537.79368713,0.00041095,30]
[312087907,1705608646210,-500.0,0.00041095,30]
[312087908,1705608646219,-500.0,0.00041095,30]
[312087909,1705608646228,-500.0,0.00041095,30]
[312087910,1705608646237,-500.0,0.00041095,30]
[312087911,1705608646247,-500.0,0.00041095,30]
[312087912,1705608646256,-500.0,0.00041095,30]
[312087913,1705608646265,-500.37228514,0.00041095,30]
[312087914,1705608646275,-500.0,0.00041095,30]
[312087915,1705608646284,-680.59,0.00041095,30]
[312087916,1705608646295,-500.0,0.00041095,30]
[312087917,1705608646304,-530.95953535,0.00041095,30]
[312087918,1705608646313,-500.0,0.00041095,30]
[312087919,1705608646322,-500.0,0.00041095,30]
[312087920,1705608646331,-500.0,0.00041095,30]
[312087921,1705608646340,-606.89308398,0.00041095,30]
[312087922,1705608646349,-501.10735135,0.00041095,30]
[312087923,1705608646358,-500.0,0.00041095,30]
[312087924,1705608646367,-1002.65681219,0.00041095,2]
[312087925,1705608646377,-500.0,0.00041095,30]
[312087926,1705608646390,-503.91176683,0.00041095,30]
[312087927,1705608646399,-500.0,0.00041095,30]
[312087928,1705608646408,-500.0,0.00041095,30]
[312087929,1705608646417,-503.59818733,0.00041095,30]
[312087930,1705608646426,-500.0,0.00041095,30]
[312087931,1705608646436,-500.0,0.00041095,30]
[312087932,1705608646444,-500.0,0.00041095,30]
[312087933,1705608646453,-605.0,0.00041095,30]
[312087934,1705608646462,-500.0,0.00041095,30]
[312087935,1705608646471,-500.0,0.00041095,30]
[312087936,1705608646481,-1000.0,0.00041095,5]
[312087937,1705608646490,-500.0,0.00041095,30]
[312087938,1705608646499,-489.11434858,0.00041095,30]
[312087939,1705608646508,-451.05876609,0.00041095,30]
[312087940,1705608646517,-500.0,0.00041095,30]
[312087941,1705608646526,-500.0,0.00041095,30]
[312087942,1705608646535,-500.0,0.00041095,30]
[312087943,1705608646544,-1084.63,0.00041095,30]
[312087944,1705608646553,-500.0,0.00041095,30]
[312087945,1705608646563,-500.0,0.00041095,30]
[312087946,1705608646572,-500.0,0.00041095,30]
[312087947,1705608646581,-500.0,0.00041095,30]
[312087948,1705608646591,-500.0,0.00041095,30]
[312087949,1705608646600,-500.0,0.00041095,30]
[312087950,1705608646609,-500.0,0.00041095,30]
[312087951,1705608646618,-500.0,0.00041095,30]
[312087952,1705608646627,-500.0,0.00041095,30]
[312087953,1705608646638,-514.21403191,0.00041095,30]
[312087954,1705608646712,-374.27691535,0.00041095,30]
[312087955,1705608646721,-500.91335171,0.00041095,30]
[312087956,1705608646730,-500.0,0.00041095,30]
[312087957,1705608646739,-500.0,0.00041095,30]
[312087958,1705608646749,-500.0,0.00041095,30]
[312087959,1705608646758,-500.0,0.00041095,30]
[312087960,1705608646767,-628.34504297,0.00041095,30]
[312087961,1705608646776,-500.0,0.00041095,30]
[312087962,1705608646786,-500.0,0.00041095,30]
[312087963,1705608646796,-500.0,0.00041095,30]
[312087964,1705608646805,-500.0,0.00041095,30]
[312087965,1705608646814,-500.0,0.00041095,30]
[312087966,1705608646823,-500.0,0.00041095,30]
[312087967,1705608646833,-704.01,0.00041095,14]
[312087968,1705608646843,-333.94524298,0.00041095,30]
[312087969,1705608646852,-500.0,0.00041095,30]
[312087970,1705608646861,-634.82,0.00041095,30]
[312087971,1705608646870,-500.0,0.00041095,30]
[312087972,1705608646881,-500.0,0.00041095,30]
[312087973,1705608646890,-500.0,0.00041095,30]
[312087974,1705608646899,-500.0,0.00041095,30]
[312087975,1705608646908,-500.0,0.00041095,30]
[312087976,1705608646918,-439.574732,0.00041095,30]
[312087977,1705608646927,-10000.0,0.00041095,10]
[312087978,1705608646936,-500.0,0.00041095,30]
[312087979,1705608646945,-500.0,0.00041095,30]
[312087980,1705608646955,-300.0,0.00041095,30]
[312087981,1705608646964,-500.0,0.00041095,30]
[312087982,1705608646972,-350.00035,0.00041095,30]
[312087983,1705608646982,-500.0,0.00041095,30]
[312087984,1705608646991,-500.0,0.00041095,30]
[312087985,1705608646999,-500.0,0.00041095,30]
[312087986,1705608647009,-500.0,0.00041095,30]
[312087987,1705608647018,-500.0,0.00041095,30]
[312087988,1705608647027,-500.0,0.00041095,30]
[312087989,1705608647036,-500.0,0.00041095,30]
[312087990,1705608647045,-500.0,0.00041095,30]
[312087991,1705608647054,-500.0,0.00041095,30]
[312087992,1705608647064,-500.0,0.00041095,30]
[312087993,1705608647073,-500.0,0.00041095,30]
[312087994,1705608647082,-500.0,0.00041095,30]
[312087995,1705608647091,-501.48503161,0.00041095,30]
[312087996,1705608647100,-500.0,0.00041095,30]
[312087997,1705608647109,-500.0,0.00041095,30]
[312087998,1705608647118,-314.11044728,0.00041095,30]
[312087999,1705608647127,-500.0,0.00041095,30]
[312088000,1705608647138,-500.0,0.00041095,30]
[312088001,1705608647147,-500.0,0.00041095,30]
[312088002,1705608647156,-634.23722324,0.00041095,30]
[312088003,1705608647165,-500.0,0.00041095,30]
[312088004,1705608647174,-1196.8,0.00041095,30]
[312088005,1705608647183,-500.0,0.00041095,30]
[312088006,1705608647192,-539.53667564,0.00041095,30]
[312088007,1705608647201,-503.87386574,0.00041095,30]
[312088008,1705608647214,-500.0,0.00041095,30]
[312088009,1705608647223,-500.0,0.00041095,30]
[312088010,1705608647232,-1384.52,0.00041095,30]
[312088011,1705608647242,-611.96,0.00041095,30]
[312088012,1705608647251,-500.0,0.00041095,30]
[312088013,1705608647261,-811.4,0.00041095,30]
[312088014,1705608647270,-811.4,0.00041095,30]
[312088015,1705608647279,-811.4,0.00041095,30]
[312088016,1705608647290,-500.0,0.00041095,30]
[312088017,1705608647299,-811.4,0.00041095,30]
[312088018,1705608647308,-811.4,0.00041095,30]
[312088019,1705608647318,-811.4,0.00041095,30]
[312088020,1705608647327,-811.4,0.00041095,30]
[312088021,1705608647336,-811.4,0.00041095,30]
[312088022,1705608647345,-811.4,0.00041095,30]
[312088023,1705608647354,-811.4,0.00041095,30]
[312088024,1705608647364,-2354.22,0.00041095,30]
[312088025,1705608647372,-811.4,0.00041095,30]
[312088026,1705608647383,-811.4,0.00041095,30]
[312088027,1705608647392,-811.4,0.00041095,30]
[312088028,1705608647401,-500.0,0.00041095,30]
[312088029,1705608647410,-811.4,0.00041095,30]
[312088030,1705608647419,-811.4,0.00041095,30]
[312088031,1705608647428,-811.4,0.00041095,30]
[312088032,1705608647437,-811.4,0.00041095,30]
[312088033,1705608647446,-811.4,0.00041095,30]
[312088034,1705608647455,-263.72030649,0.00041095,30]
[312088035,1705608647464,-811.4,0.00041095,30]
[312088036,1705608647472,-811.4,0.00041095,30]
[312088037,1705608647481,-500.0,0.00041095,30]
[312088038,1705608647490,-811.4,0.00041095,30]
[312088039,1705608647501,-811.4,0.00041095,30]
[312088040,1705608647510,-502.68442693,0.00041095,30]
[312088041,1705608647519,-811.4,0.00041095,30]
[312088042,1705608647528,-644.16,0.00041095,30]
[312088043,1705608647537,-811.46204895,0.00041095,30]
[312088044,1705608647546,-500.0,0.00041095,30]
[312088045,1705608647555,-500.0,0.00041095,30]
[312088046,1705608647564,-500.0,0.00041095,30]
[312088047,1705608647574,-500.0,0.00041095,30]
[312088048,1705608647583,-500.0,0.00041095,30]
[312088049,1705608647593,-500.0,0.00041095,30]
[312088050,1705608647602,-500.64672616,0.00041095,30]
[312088051,1705608647612,-500.0,0.00041095,30]
[312088052,1705608647622,-500.0,0.00041095,30]
[312088053,1705608647631,-500.0,0.00041095,30]
[312088054,1705608647641,-476.08612936,0.00041095,30]
[312088055,1705608647651,-500.0,0.00041095,30]
[312088056,1705608647660,-500.0,0.00041095,30]
[312088057,1705608647670,-522.70298459,0.00041095,30]
[312088058,1705608647680,-501.57,0.00041095,30]
[312088059,1705608647689,-500.0,0.00041095,30]
[312088060,1705608647699,-500.0,0.00041095,30]
[312088061,1705608647708,-500.0,0.00041095,30]
[312088062,1705608647718,-500.0,0.00041095,30]
[312088063,1705608647727,-1129.81,0.00041095,30]
[312088064,1705608647737,-2856.74,0.00041095,30]
[312088065,1705608647746,-500.0,0.00041095,30]
[312088066,1705608647756,-500.0,0.00041095,30]
[312088067,1705608647765,-23764.01,0.00041095,14]
[312088068,1705608647774,-500.0,0.00041095,30]
[312088069,1705608647783,-2945.88,0.00041095,30]
[312088070,1705608647792,-200.0,0.00041095,30]
[312088071,1705608647801,-500.0,0.00041095,30]
[312088072,1705608647811,-500.0,0.00041095,30]
[312088073,1705608647820,-500.0,0.00041095,30]
[312088074,1705608647830,-500.0,0.00041095,30]
[312088075,1705608647839,-3286.51,0.00041095,30]
[312088076,1705608647848,-521.41693846,0.00041095,30]
[312088077,1705608647858,-2407.5,0.00041095,30]
[312088078,1705608647867,-5702.17,0.00041095,30]
[312088079,1705608647877,-500.0,0.00041095,30]
[312088080,1705608647890,-500.0,0.00041095,30]
[312088081,1705608647899,-513.29241358,0.00041095,30]
[312088082,1705608647909,-640.45045007,0.00041095,30]
[312088083,1705608647918,-500.0,0.00041095,30]
[312088084,1705608647927,-500.0,0.00041095,30]
[312088085,1705608647937,-437.56994933,0.00041095,30]
[312088086,1705608647946,-500.0,0.00041095,30]
[312088087,1705608648019,-500.0,0.00041095,30]
[312088088,1705608648029,-500.0,0.00041095,30]
[312088089,1705608648039,-2158.55,0.00041095,30]
[312088090,1705608648048,-2158.55,0.00041095,30]
[312088091,1705608648058,-2158.55,0.00041095,30]
[312088092,1705608648067,-2158.55,0.00041095,30]
[312088093,1705608648076,-502.61124632,0.00041095,30]
[312088094,1705608648085,-2158.55,0.00041095,30]
[312088095,1705608648094,-1088.91,0.00041095,30]
[312088096,1705608648103,-500.0,0.00041095,30]
[312088097,1705608648112,-2158.55,0.00041095,30]
[312088098,1705608648121,-2158.55,0.00041095,30]
[312088099,1705608648131,-2158.55,0.00041095,30]
[312088100,1705608648140,-2158.55,0.00041095,30]
[312088101,1705608648150,-2158.55,0.00041095,30]
[312088102,1705608648158,-2158.55,0.00041095,30]
[312088103,1705608648167,-2158.55,0.00041095,30]
[312088104,1705608648176,-2158.55,0.00041095,30]
[312088105,1705608648185,-2158.55,0.00041095,30]
[312088106,1705608648196,-513.00699757,0.00041095,30]
[312088107,1705608648207,-2158.55,0.00041095,30]
[312088108,1705608648216,-2158.55,0.00041095,30]
[312088109,1705608648225,-2158.55,0.00041095,30]
[312088110,1705608648235,-2158.55,0.00041095,30]
[312088111,1705608648245,-2158.55,0.00041095,30]
[312088112,1705608648254,-504.89075612,0.00041095,30]
[312088113,1705608648264,-500.0,0.00041095,30]
[312088114,1705608648273,-2158.55,0.00041095,30]
[312088115,1705608648282,-2158.55,0.00041095,30]
[312088116,1705608648291,-2158.55,0.00041095,30]
[312088117,1705608648300,-2158.55,0.00041095,30]
[312088118,1705608648309,-2158.75,0.00041095,30]
[312088119,1705608648318,-500.0,0.00041095,30]
[312088120,1705608648327,-500.0,0.00041095,30]
[312088121,1705608648336,-725.73,0.00041095,30]
[312088122,1705608648345,-363.68438748,0.00041095,30]
[312088123,1705608648354,-500.0,0.00041095,30]
[312088124,1705608648363,-500.0,0.00041095,30]
[312088125,1705608648372,-500.0,0.00041095,30]
[312088126,1705608648383,-500.0,0.00041095,30]
[312088127,1705608648394,-500.0,0.00041095,30]
[312088128,1705608648402,-150.0,0.00041095,30]
[312088129,1705608648411,-500.97903448,0.00041095,30]
[312088130,1705608648420,-500.0,0.00041095,30]
[312088131,1705608648429,-500.0,0.00041095,30]
[312088132,1705608648438,-500.0,0.00041095,20]
[312088133,1705608648447,-500.0,0.00041095,30]
[312088134,1705608648456,-1062.13,0.00041095,30]
[312088135,1705608648465,-500.0,0.00041095,30]
[312088136,1705608648474,-1219.76,0.00041095,30]
[312088140,1705608648483,-14825.1,0.00041095,30]
[312088144,1705608648491,-500.62077574,0.00041095,30]
[312088147,1705608648500,-1577.79,0.00041095,30]
[312088149,1705608648508,-4998.78,0.00041095,30]
[312088150,1705608648517,-500.53736476,0.00041095,30]
[312088151,1705608648526,-500.0,0.00041095,30]
[312088153,1705608648535,-500.0,0.00041095,30]
[312088156,1705608648544,-500.0,0.00041095,30]
[312088159,1705608648553,-500.0,0.00041095,30]
[312088162,1705608648562,-500.0,0.00041095,30]
[312088165,1705608648572,-500.0,0.00041095,30]
[312088168,1705608648581,-500.0,0.00041095,30]
[312088170,1705608648591,-376.5362016,0.00041095,30]
[312088173,1705608648601,-500.0,0.00041095,30]
[312088176,1705608648609,-500.0,0.00041095,30]
[312088178,1705608648618,-500.0,0.00041095,30]
[312088181,1705608648627,-500.0,0.00041095,30]
[312088183,1705608648637,-500.0,0.00041095,30]
[312088186,1705608648648,-500.0,0.00041095,30]
[312088188,1705608648657,-7008.26,0.00041095,30]
[312088191,1705608648666,-500.0,0.00041095,30]
[312088194,1705608648676,-500.0,0.00041095,30]
[312088197,1705608648685,-1236.92,0.00041095,30]
[312088200,1705608648695,-500.0,0.00041095,30]
[312088203,1705608648705,-221.30751281,0.00041095,30]
[312088205,1705608648714,-7792.73782502,0.00041095,14]
[312088208,1705608648723,-500.0,0.00041095,30]
[312088211,1705608648733,-537.24,0.00041095,30]
[312088214,1705608648742,-6394.2,0.00041095,30]
[312088217,1705608648751,-500.0,0.00041095,30]
[312088218,1705608648760,-504.2170462,0.00041095,30]
[312088221,1705608648769,-883.38,0.00041095,30]
[312088224,1705608648779,-500.0,0.00041095,30]
[312088227,1705608648788,-500.0,0.00041095,30]
[312088228,1705608648798,-500.0,0.00041095,30]
[312088230,1705608648807,-500.0,0.00041095,30]
[312088232,1705608648816,-500.0,0.00041095,30]
[312088233,1705608648826,-500.0,0.00041095,30]
[312088235,1705608648836,-500.0,0.00041095,30]
[312088237,1705608648845,-500.0,0.00041095,30]
[312088239,1705608648854,-500.0,0.00041095,30]
[312088241,1705608648863,-2063.25,0.00041095,30]
[312088242,1705608648872,-500.0,0.00041095,30]
[312088244,1705608648882,-500.0,0.00041095,30]
[312088245,1705608648891,-500.0,0.00041095,30]
[312088246,1705608648900,-500.0,0.00041095,30]
[312088247,1705608648909,-500.0,0.00041095,5]
[312088248,1705608648919,-500.0,0.00041095,30]
[312088249,1705608648927,-500.0,0.00041095,30]
[312088250,1705608648936,-3038.35689602,0.00041095,14]
[312088251,1705608648945,-500.0,0.00041095,30]
[312088252,1705608648955,-500.0,0.00041095,30]
[312088253,1705608648963,-500.0,0.00041095,30]
[312088254,1705608648972,-500.0,0.00041095,30]
[312088255,1705608648981,-500.0,0.00041095,30]
[312088256,1705608648990,-500.0,0.00041095,30]
[312088257,1705608649000,-500.0,0.00041095,30]
[312088258,1705608649009,-500.0,0.00041095,30]
[312088259,1705608649018,-500.0,0.00041095,30]
[312088260,1705608649027,-420.18868965,0.00041095,30]
[312088261,1705608649036,-500.0,0.00041095,30]
[312088262,1705608649046,-500.0,0.00041095,30]
[312088263,1705608649055,-500.0,0.00041095,30]
[312088267,1705608649064,-500.0,0.00041095,30]
[312088270,1705608649073,-1745.55,0.00041095,30]
[312088273,1705608649082,-866.39,0.00041095,30]
[312088276,1705608649091,-2620.78,0.00041095,30]
[312088278,1705608649101,-500.0,0.00041095,30]
[312088281,1705608649112,-500.0,0.00041095,30]
[312088282,1705608649121,-500.0,0.00041095,30]
[312088284,1705608649130,-500.0,0.00041095,30]
[312088286,1705608649140,-203.1391671,0.00041095,30]
[312088287,1705608649203,-500.0,0.00041095,30]
[312088288,1705608649219,-500.0,0.00041095,30]
[312088289,1705608649228,-2132.43,0.00041095,30]
[312088290,1705608649237,-500.0,0.00041095,30]
[312088291,1705608649246,-3218.98,0.00041095,30]
[312088292,1705608649256,-3343.02,0.00041095,30]
[312088293,1705608649265,-500.0,0.00041095,30]
[312088294,1705608649275,-500.0,0.00041095,30]
[312088295,1705608649283,-500.0,0.00041095,30]
[312088296,1705608649294,-259.43468253,0.00041095,30]
[312088297,1705608649304,-500.0,0.00041095,7]
[312088298,1705608649313,-500.0,0.00041095,2]
[312088299,1705608649322,-500.0,0.00041095,30]
[312088300,1705608649331,-539.46195123,0.00041095,30]
[312088301,1705608649340,-199.02165548,0.00041095,30]
[312088302,1705608649349,-500.0,0.00041095,2]
[312088303,1705608649358,-504.38773086,0.00041095,30]
[312088304,1705608649368,-500.0,0.00041095,30]
[312088305,1705608649377,-151.0,0.00041095,2]
[312088306,1705608649387,-151.0,0.00041095,2]
[312088307,1705608649396,-151.0,0.00041095,2]
[312088308,1705608649406,-151.0,0.00041095,2]
[312088309,1705608649415,-151.0,0.00041095,2]
[312088310,1705608649424,-151.0,0.00041095,2]
[312088311,1705608649433,-151.0,0.00041095,2]
[312088312,1705608649442,-151.0,0.00041095,2]
[312088313,1705608649451,-151.0,0.00041095,2]
[312088314,1705608649460,-151.0,0.00041095,2]
[312088315,1705608649469,-151.0,0.00041095,2]
[312088316,1705608649478,-151.0,0.00041095,2]
[312088317,1705608649489,-172.612572,0.00041095,2]
[312088318,1705608649498,-151.0,0.00041095,2]
[312088319,1705608649507,-151.0,0.00041095,2]
[312088320,1705608649516,-153.756851,0.00041095,2]
[312088321,1705608649525,-151.0,0.00041095,2]
[312088322,1705608649535,-151.0,0.00041095,2]
[312088323,1705608649543,-151.0,0.00041095,2]
[312088324,1705608649552,-3623.526008,0.00041095,2]
[312088325,1705608649561,-3623.526008,0.00041095,2]
[312088326,1705608649570,-3623.526008,0.00041095,2]
[312088327,1705608649579,-3623.526008,0.00041095,2]
[312088328,1705608649587,-3623.526008,0.00041095,2]
[312088329,1705608649596,-3623.526008,0.00041095,2]
[312088330,1705608649606,-151.0,0.00041095,2]
[312088331,1705608649616,-278.349771,0.00041095,2]
[312088332,1705608649625,-151.0,0.00041096,7]
[312088333,1705608649635,-151.0,0.00041096,7]
[312088334,1705608649644,-176.383568,0.00041096,2]
[312088335,1705608649653,-1220.1106198,0.00041096,7]
[312088336,1705608649662,-46405.8233744,0.00041096,15]
[312088337,1705608649671,-1500.0,0.000411,3]
[312088338,1705608649680,-151.0,0.00041138,21]
[312088339,1705608649689,-232.316,0.00041162,2]
[312088340,1705608649698,-151.0,0.00041181,21]
[312088341,1705608649707,-200.0,0.000412,4]
[312088342,1705608649716,-151.0,0.00041223,21]
[312088343,1705608649725,-151.0,0.00041266,21]
[312088344,1705608649735,-419.35046969,0.00041269,14]
[312088345,1705608649744,-419.35046969,0.00041269,14]
[312088346,1705608649753,-419.35046969,0.00041269,14]
[312088347,1705608649762,-419.35046969,0.00041269,14]
[312088348,1705608649771,-419.35046969,0.00041269,14]
[312088349,1705608649780,-419.35046969,0.00041269,14]
[312088350,1705608649789,-419.35046969,0.00041269,14]
[312088351,1705608649798,-419.35046969,0.00041269,14]
[312088352,1705608649809,-419.35046969,0.00041269,14]
[312088353,1705608649820,-419.35046969,0.00041269,14]
[312088354,1705608649829,-419.35046969,0.00041269,14]
[312088355,1705608649838,-419.35046969,0.00041269,14]
[312088356,1705608649847,-419.35046969,0.00041269,14]
[312088357,1705608649856,-419.35046969,0.00041269,14]
[312088358,1705608649865,-419.35046969,0.00041269,14]
[312088359,1705608649874,-419.35046969,0.00041269,14]
[312088360,1705608649884,-419.35046969,0.00041269,14]
[312088361,1705608649893,-419.35046969,0.00041269,14]
[312088362,1705608649902,-419.35046969,0.00041269,14]
[312088363,1705608649911,-419.35,0.00041269,14]
[312088364,1705608649920,-1677.40187877,0.00041269,14]
[312088365,1705608649929,-1677.40187877,0.00041269,14]
[312088366,1705608649938,-1677.40187877,0.00041269,14]
[312088367,1705608649947,-1677.40187877,0.00041269,14]
[312088368,1705608649956,-1677.40187877,0.00041269,14]
[312088369,1705608649965,-1677.40187877,0.00041269,14]
[312088370,1705608649974,-1677.40187877,0.00041269,14]
[312088371,1705608649983,-1677.40187877,0.00041269,14]
[312088372,1705608649992,-1677.40187877,0.00041269,14]
[312088373,1705608650001,-1677.40187877,0.00041269,14]
[312088374,1705608650010,-1677.40187877,0.00041269,14]
[312088375,1705608650020,-1677.40187877,0.00041269,14]
[312088376,1705608650029,-1677.40187877,0.00041269,14]
[312088377,1705608650039,-1677.40187877,0.00041269,14]
[312088378,1705608650048,-1677.40187877,0.00041269,14]
[312088379,1705608650058,-1677.40187877,0.00041269,14]
[312088380,1705608650067,-1677.40187877,0.00041269,14]
[312088381,1705608650075,-1677.40187877,0.00041269,14]
[312088382,1705608650085,-150.30083188,0.00041269,14]
[312088383,1705608650095,-150.30083188,0.00041269,14]
[312088384,1705608650104,-150.30083188,0.00041269,14]
[312088385,1705608650114,-150.3,0.00041269,14]